bitfinex/quotes_ETHUSD_20260310
["timestamp","ask_amount","ask_price","bid_price","bid_amount"]
[1773118256171,3.41067337,2041.6,2041.2,0.45626684]
[1773118256471,0.48365798,2041.6,2041.0,0.45726684]
[1773118256697,0.48365798,2041.4,2041.0,0.001]
[1773118257181,1.22470974,2041.3,2041.0,0.001]
[1773118257475,0.48365798,2041.0,2040.5,0.001]
[1773118257780,0.48365798,2040.8,2040.5,0.001]
[1773118257954,3.41376311,2040.7,2040.5,0.001]
[1773118258280,2.93010513,2040.6,2040.5,0.001]
[1773118259374,1.22512986,2040.6,2040.5,0.001]
[1773118259978,1.70875714,2040.7,2040.5,0.001]
[1773118260176,1.70875714,2040.7,2040.1,0.45626684]
[1773118260376,0.48365798,2040.5,2039.8,0.45626684]
[1773118260815,1.22494977,2040.9,2039.9,0.45626684]
[1773118261004,2.926836,2040.8,2040.2,0.45626684]
[1773118261202,4.15189159,2040.8,2040.2,1.68160983]
[1773118261401,2.926836,2040.7,2040.2,1.68160983]
[1773118261778,1.22505559,2040.8,2040.3,0.45626684]
[1773118261979,2.92515586,2040.7,2040.0,0.45626684]
[1773118262192,1.22505559,2040.8,2040.0,0.45626684]
[1773118262387,1.22491751,2041.0,2040.1,0.45626684]
[1773118262588,3.8259807,2041.2,2040.1,0.45626684]
[1773118262589,2.70579996,2041.2,2040.4,0.45626684]
[1773118262791,2.92366407,2041.1,2040.4,0.45626684]
[1773118263381,4.14851488,2041.1,2040.6,0.46499639]
[1773118263595,1.22485081,2041.1,2040.6,0.46499639]
[1773118264995,2.70581626,2041.2,2040.6,0.46499639]
[1773118265195,2.92237648,2041.1,2040.6,0.46499639]
[1773118266017,2.92237648,2041.1,2040.7,1.22506982]
[1773118266884,2.92237648,2041.1,2040.6,1.69007969]
[1773118267083,1.22481626,2041.2,2040.6,1.69007969]
[1773118267919,1.22481626,2041.2,2040.7,0.46499639]
[1773118268135,1.22481626,2041.2,2040.7,1.69004313]
[1773118268921,1.70797522,2041.2,2040.7,0.46499639]
[1773118269115,1.70797522,2041.2,2040.7,1.69005721]
[1773118269309,1.70797522,2041.2,2040.7,0.46499639]
[1773118269823,0.002,2041.0,2040.7,0.46599639]
[1773118272506,0.002,2041.0,2040.7,1.6910509]
[1773118273337,0.002,2041.0,2040.8,0.46499639]
[1773118277148,0.002,2041.0,2040.8,1.68999894]
[1773118277442,0.002,2041.0,2040.9,0.46499639]
[1773118278321,0.002,2041.0,2040.7,1.69103545]
[1773118280343,0.002,2041.2,2040.8,0.46499639]
[1773118280732,0.48515896,2041.2,2040.8,0.46499639]
[1773118280950,1.70993565,2041.2,2040.8,0.46499639]
[1773118281334,1.70993565,2041.2,2040.7,1.22605978]
[1773118281739,1.70993565,2041.2,2040.7,1.69105617]
[1773118282353,0.48515896,2041.2,2040.7,1.69105617]
[1773118282549,1.70993345,2041.2,2040.7,1.69105617]
[1773118282849,0.002,2040.8,2040.7,1.69105617]
[1773118283056,1.70992873,2041.2,2040.7,1.69105617]
[1773118283057,0.48515896,2041.2,2040.7,1.69105617]
[1773118283261,1.70992935,2041.2,2040.7,1.69105617]
[1773118284060,0.48315896,2041.1,2040.7,0.46599639]
[1773118284259,0.48315896,2041.1,2040.7,0.001]
[1773118285265,3.41504939,2041.0,2040.7,0.001]
[1773118285448,0.48315896,2040.9,2040.7,0.001]
[1773118285833,1.70814654,2040.9,2040.7,0.001]
[1773118286042,0.48315896,2040.8,2040.7,0.001]
[1773118286241,3.40904383,2040.8,2040.7,0.001]
[1773118286537,3.40904383,2040.8,2040.5,0.001]
[1773118286538,0.48315896,2040.7,2040.5,0.001]
[1773118286744,2.93285704,2040.6,2040.2,0.001]
[1773118287071,3.416016,2040.6,2040.2,0.001]
[1773118287259,0.48315896,2040.6,2040.2,0.001]
[1773118287952,0.48315896,2040.6,2040.2,1.69136397]
[1773118288255,2.93335486,2040.5,2040.2,1.69136397]
[1773118289567,2.93335486,2040.5,2040.2,0.46599639]
[1773118289764,0.48315896,2040.4,2040.2,0.001]
[1773118289964,1.69540346,2040.4,2040.2,0.001]
[1773118290991,0.47015215,2040.4,2040.2,0.001]
[1773118291485,0.47015215,2040.4,2039.9,1.69049643]
[1773118291486,0.48315896,2040.3,2039.7,1.6906329]
[1773118291874,4.64168356,2040.2,2039.7,1.6906642]
[1773118292073,1.70857624,2040.2,2039.7,1.6906642]
[1773118292272,0.48315896,2040.1,2039.6,0.46499639]
[1773118292677,0.48315896,2040.3,2039.6,0.46499639]
[1773118292882,3.41509611,2040.2,2039.6,0.46499639]
[1773118293064,0.48315896,2040.2,2039.6,0.46499639]
[1773118293259,0.48315896,2040.2,2039.3,0.46499639]
[1773118294303,1.70853158,2040.2,2039.5,0.46943286]
[1773118295207,0.45608172,2040.1,2039.7,0.001]
[1773118295894,0.45608172,2040.0,2039.7,0.001]
[1773118297891,3.38152326,2040.5,2039.9,0.46943286]
[1773118298101,1.68115437,2040.7,2039.9,0.46943286]
[1773118298407,2.92529807,2040.6,2039.9,0.46943286]
[1773118298697,2.92529807,2040.6,2040.0,1.22549019]
[1773118298902,4.15043375,2040.6,2040.1,0.46943286]
[1773118299102,1.22513568,2040.6,2040.1,0.46943286]
[1773118300504,1.68118977,2040.7,2040.1,0.46943286]
[1773118300708,2.92485906,2040.6,2040.1,0.46943286]
[1773118301409,2.92485906,2040.6,2040.2,1.69480292]
[1773118301606,4.15000052,2040.6,2040.2,0.46943286]
[1773118301776,0.45608172,2040.5,2040.0,1.69487953]
[1773118302317,0.45608172,2040.5,2040.0,0.46943286]
[1773118302493,0.45608172,2040.5,2039.8,1.69500474]
[1773118302683,1.22514146,2040.6,2039.8,1.69500474]
[1773118302684,0.45608172,2040.4,2039.8,1.69500474]
[1773118302884,0.45608172,2040.4,2039.9,0.46943286]
[1773118303416,0.45608172,2040.4,2040.0,1.22549019]
[1773118303914,1.68133299,2040.4,2039.9,1.69494449]
[1773118304112,0.45608172,2040.3,2039.7,1.6960554]
[1773118304417,0.45608172,2040.3,2039.7,1.69609992]
[1773118305416,0.45608172,2040.6,2039.8,0.46943286]
[1773118305641,3.38155564,2040.6,2039.8,0.46943286]
[1773118305840,2.92547392,2040.6,2039.9,0.46943286]
[1773118306026,1.68309355,2040.8,2039.9,0.46943286]
[1773118307928,1.68309355,2040.8,2040.1,0.46943286]
[1773118307929,0.45808172,2040.8,2040.1,0.46943286]
[1773118308143,1.6830952,2040.8,2040.1,0.46943286]
[1773118308439,0.002,2040.4,2040.1,0.46943286]
[1773118308641,0.002,2040.6,2040.1,0.4660605]
[1773118310959,0.002,2040.6,2040.3,0.4660605]
[1773118313164,0.002,2040.6,2040.3,1.69134547]
[1773118313951,0.002,2040.6,2040.4,0.4660605]
[1773118314557,0.002,2040.8,2040.4,0.4660605]
[1773118314759,0.002,2040.8,2040.5,0.4660605]
[1773118316064,0.002,2040.9,2040.5,4.90051945]
[1773118316258,0.002,2040.9,2040.6,0.4660605]
[1773118318239,0.002,2040.9,2040.7,1.69113032]
[1773118318640,0.002,2040.9,2040.8,0.4660605]
[1773118320842,0.002,2040.9,2040.7,1.22504611]
[1773118321045,0.002,2040.9,2040.6,1.69114194]
[1773118321546,0.002,2040.9,2040.6,0.4660605]
[1773118321869,0.49035346,2040.9,2040.4,3.13626337]
[1773118322056,0.44102981,2040.9,2040.4,1.69126337]
[1773118322259,0.002,2041.0,2040.3,0.001]
[1773118322260,0.49035346,2040.7,2040.3,0.001]
[1773118322740,0.48835346,2040.6,2040.3,0.001]
[1773118322942,0.002,2040.7,2040.3,0.4670605]
[1773118323141,0.002,2040.7,2040.4,0.4660605]
[1773118323364,0.49035346,2041.0,2040.4,0.4660605]
[1773118323365,0.002,2041.0,2040.4,0.4660605]
[1773118323566,0.002,2041.2,2040.4,0.46143001]
[1773118324486,0.002,2041.2,2040.6,3.36237363]
[1773118324661,0.002,2041.2,2040.8,0.46143001]
[1773118324864,0.002,2041.2,2041.0,0.46143001]
[1773118325051,0.002,2041.5,2041.0,0.46143001]
[1773118325596,0.002,2041.5,2041.2,0.46143001]
[1773118325884,0.002,2041.6,2041.3,0.46143001]
[1773118326083,0.002,2041.8,2041.3,0.46143001]
[1773118327168,0.002,2041.8,2041.4,1.68607976]
[1773118328274,0.45377504,2041.8,2041.3,2.67266825]
[1773118328874,0.45377504,2041.8,2041.3,3.13409826]
[1773118330190,0.002,2041.8,2041.4,0.46143001]
[1773118332168,0.002,2041.8,2041.4,1.68603187]
[1773118332993,0.45377504,2041.8,2041.1,0.46143001]
[1773118333173,0.45377504,2041.8,2041.2,1.91143001]
[1773118333575,0.45377504,2041.8,2041.3,0.46143001]
[1773118334098,1.67818802,2041.8,2041.3,1.68610795]
[1773118334963,0.002,2041.6,2041.3,0.46143001]
[1773118335161,0.45377504,2041.6,2041.1,2.67478373]
[1773118336490,0.45377504,2041.6,2041.0,4.8995412]
[1773118336491,0.45177504,2041.5,2041.0,1.22488798]
[1773118336690,0.45177504,2041.5,2040.9,1.91143001]
[1773118337000,0.45177504,2041.5,2040.9,2.67493662]
[1773118337176,0.45177504,2041.5,2040.9,1.45]
[1773118337517,0.45177504,2041.5,2040.7,1.68645751]
[1773118338070,0.45177504,2041.5,2040.8,0.46143001]
[1773118338486,0.45177504,2041.3,2040.7,0.46143001]
[1773118338688,1.67640336,2041.5,2040.7,0.46143001]
[1773118339268,0.45177504,2041.4,2040.7,0.46143001]
[1773118341317,0.45177504,2041.3,2040.7,1.22503568]
[1773118342422,0.45177504,2041.3,2040.7,1.68646569]
[1773118343288,0.45177504,2041.2,2040.7,1.68646569]
[1773118345404,1.67654775,2041.2,2040.7,1.68646569]
[1773118345714,0.45177504,2041.1,2040.7,1.22506545]
[1773118346075,0.45177504,2041.1,2040.6,0.001]
[1773118346275,0.45177504,2041.1,2040.6,1.22608434]
[1773118346630,0.45177504,2041.3,2040.7,0.46143001]
[1773118347379,0.45177504,2041.3,2040.9,0.001]
[1773118347580,0.45177504,2041.3,2040.9,1.22594977]
[1773118349523,0.45177504,2041.2,2040.9,0.001]
[1773118349706,0.45177504,2041.2,2040.7,0.001]
[1773118349707,0.45177504,2041.0,2040.7,0.001]
[1773118354008,0.47463534,2041.2,2040.7,0.49690654]
[1773118354205,3.40375002,2041.2,2040.7,0.49690654]
[1773118355130,0.002,2041.4,2040.8,0.49690654]
[1773118355925,0.002,2041.4,2041.0,0.49690654]
[1773118357919,0.002,2041.4,2041.1,1.72173628]
[1773118360706,0.002,2041.4,2041.2,0.49690654]
[1773118361719,0.002,2041.6,2041.3,0.49690654]
[1773118361945,0.002,2041.7,2041.4,0.49690654]
[1773118362109,0.002,2041.8,2041.5,0.49690654]
[1773118364245,0.002,2041.8,2041.6,1.22452978]
[1773118365345,0.002,2041.8,2041.6,1.72143632]
[1773118365546,0.002,2041.8,2041.7,0.49690654]
[1773118366329,0.002,2041.8,2041.7,1.72137634]
[1773118371449,0.002,2041.9,2041.8,0.45364857]
[1773118371616,0.002,2042.4,2041.8,0.45364857]
[1773118373542,1.42825847,2042.3,2041.8,1.91064857]
[1773118374265,1.42825847,2042.3,2041.9,0.001]
[1773118374426,0.20409712,2042.2,2041.9,0.001]
[1773118374632,0.20409712,2042.2,2041.7,0.001]
[1773118374854,0.002,2041.8,2041.7,0.001]
[1773118376621,0.002,2041.8,2041.4,1.22564918]
[1773118377433,0.002,2041.8,2041.4,1.22563312]
[1773118377732,0.28421104,2041.8,2041.4,1.22563312]
[1773118378134,0.28421104,2041.8,2041.4,1.22564225]
[1773118380254,0.28421104,2041.8,2041.4,1.67929082]
[1773118381054,1.50862886,2041.8,2041.4,0.001]
[1773118382661,0.002,2041.8,2041.4,0.45464857]
[1773118382826,0.002,2042.1,2041.6,0.45364857]
[1773118384441,0.002,2042.1,2041.7,0.45326593]
[1773118384644,0.002,2042.1,2041.8,1.22440983]
[1773118384946,0.002,2042.1,2041.9,0.45326593]
[1773118385637,0.002,2042.4,2041.9,0.45326593]
[1773118385955,0.002,2042.4,2042.0,0.45326593]
[1773118386945,0.002,2042.4,2042.2,0.45326593]
[1773118388346,0.002,2042.4,2042.1,1.22422995]
[1773118388549,0.002,2042.4,2042.1,1.67749588]
[1773118391863,0.002,2042.4,2042.1,0.45326593]
[1773118392032,0.002,2042.4,2042.1,1.67749432]
[1773118392662,0.002,2042.4,2042.1,1.6774678]
[1773118393563,0.002,2042.4,2042.1,0.45326593]
[1773118394265,0.002,2042.4,2042.1,1.67749469]
[1773118398365,0.002,2042.4,2042.1,1.22422876]
[1773118398670,0.002,2042.4,2042.2,0.45326593]
[1773118401176,0.28421104,2042.4,2041.9,0.001]
[1773118401881,0.28221104,2042.2,2041.9,0.001]
[1773118402647,0.28221104,2042.2,2041.9,0.45426593]
[1773118404181,1.50830518,2042.4,2041.9,1.22533657]
[1773118404482,0.28221104,2042.3,2041.9,0.45426593]
[1773118404778,0.28221104,2042.3,2041.9,0.001]
[1773118406249,0.28221104,2042.1,2041.9,0.001]
[1773118408079,0.28221104,2042.2,2041.9,0.001]
[1773118408882,0.28221104,2042.3,2041.9,0.45426593]
[1773118409178,1.5063249,2042.3,2041.9,0.45426593]
[1773118409389,0.28221104,2042.2,2041.9,0.45426593]
[1773118409594,0.28221104,2042.2,2041.9,0.001]
[1773118409895,0.28221104,2042.2,2041.7,0.45426593]
[1773118410088,0.28221104,2042.2,2041.7,1.67873319]
[1773118410588,0.28221104,2042.2,2041.8,0.45326593]
[1773118410880,0.28221104,2042.2,2041.8,1.67767304]
[1773118411051,0.28221104,2042.2,2041.9,0.45326593]
[1773118411452,1.50639272,2042.2,2041.7,1.67868667]
[1773118411653,0.26143256,2042.1,2041.7,0.45426593]
[1773118411892,0.26143256,2042.1,2042.0,0.001]
[1773118412967,1.22618168,2042.2,2042.0,0.001]
[1773118413459,1.48761424,2042.2,2042.0,0.001]
[1773118414257,0.26343256,2042.2,2042.0,0.001]
[1773118414598,0.002,2042.2,2042.0,0.001]
[1773118416653,1.22608526,2042.4,2042.0,0.45389341]
[1773118417087,0.002,2042.4,2042.0,1.67817332]
[1773118417267,1.2281114,2042.4,2042.0,1.67817332]
[1773118417662,1.2281114,2042.4,2042.1,0.45289341]
[1773118417869,0.002,2042.4,2042.1,0.45289341]
[1773118418290,0.48835997,2042.6,2042.1,0.45289341]
[1773118418489,0.48835997,2042.6,2042.3,0.45289341]
[1773118419392,0.48835997,2042.6,2042.3,1.6770022]
[1773118419692,0.48835997,2042.6,2042.4,0.45289341]
[1773118420265,0.26143256,2042.5,2042.1,0.45289341]
[1773118420974,1.71229942,2042.6,2042.1,0.45289341]
[1773118421176,1.71447137,2042.6,2042.2,1.67706342]
[1773118421376,1.2261114,2042.5,2042.3,0.45289341]
[1773118421789,0.48835997,2042.6,2042.3,0.45289341]
[1773118421984,1.71447137,2042.6,2042.3,0.45289341]
[1773118422396,0.002,2042.7,2042.5,0.45289341]
[1773118422697,1.2281114,2042.7,2042.5,0.45289341]
[1773118426692,0.26143256,2042.5,2042.1,0.45389341]
[1773118427395,1.48754396,2042.4,2042.1,0.001]
[1773118427603,1.48554263,2042.3,2042.1,0.001]
[1773118428178,1.48754396,2042.2,2041.8,0.001]
[1773118428372,0.26043256,2042.1,2041.8,0.001]
[1773118428577,1.2261114,2042.2,2041.8,0.001]
[1773118428776,1.2261114,2042.1,2041.8,0.001]
[1773118428997,1.2261114,2042.1,2041.8,0.45389341]
[1773118430271,2.45035311,2042.1,2041.8,0.45389341]
[1773118432000,1.2261114,2042.1,2041.8,0.45389341]
[1773118432202,1.48465049,2042.2,2041.8,0.45389341]
[1773118432499,1.2261114,2042.0,2041.8,0.45389341]
[1773118432892,0.26043256,2042.2,2041.8,0.45389341]
[1773118433075,1.2261114,2042.1,2041.8,0.45389341]
[1773118434704,2.45035986,2042.1,2041.8,0.45389341]
[1773118435405,1.2261114,2042.1,2041.8,0.45389341]
[1773118437309,1.22428991,2042.0,2041.8,0.45389341]
[1773118437619,1.50391043,2042.0,2041.8,0.001]
[1773118437786,1.2261114,2042.0,2041.7,0.47698241]
[1773118439589,0.002,2041.9,2041.7,0.47698241]
[1773118439897,0.002,2041.9,2041.8,0.001]
[1773118440109,0.002,2041.9,2041.8,0.47698241]
[1773118440316,0.002,2041.9,2041.8,0.001]
[1773118441118,0.002,2042.1,2041.9,0.47598241]
[1773118441432,1.2261114,2042.0,2041.9,0.47598241]
[1773118441802,0.002,2042.1,2042.0,0.47598241]
[1773118442521,1.22011139,2042.1,2041.8,0.47698241]
[1773118442884,1.22011139,2042.1,2041.8,1.22540557]
[1773118443237,1.22011139,2042.1,2041.9,0.47598241]
[1773118443921,0.002,2042.1,2042.0,0.49098651]
[1773118446490,0.002,2042.1,2042.0,1.71527642]
[1773118446693,0.002,2042.1,2042.0,0.49098651]
[1773118448923,0.002,2042.1,2042.0,1.71527642]
[1773118449227,0.002,2042.1,2042.0,0.49098651]
[1773118450828,0.002,2042.1,2042.0,1.71527642]
[1773118451624,0.002,2042.1,2042.0,0.49098651]
[1773118452394,0.002,2042.4,2042.1,0.49098651]
[1773118452593,1.21811139,2042.3,2042.2,0.001]
[1773118452800,1.01811139,2042.3,2042.2,1.71615652]
[1773118453012,0.002,2042.4,2042.3,0.49098651]
[1773118457030,0.002,2042.4,2042.2,0.49198651]
[1773118468744,0.48178344,2042.4,2042.2,0.001]
[1773118468950,0.002,2042.6,2042.4,0.49098651]
[1773118469144,0.002,2042.6,2042.3,1.34284634]
[1773118469145,0.002,2042.7,2042.5,0.49098651]
[1773118469446,1.70556513,2042.9,2042.6,0.49098651]
[1773118469447,0.48178344,2042.9,2042.6,0.49098651]
[1773118471451,1.70553876,2042.9,2042.6,0.49098651]
[1773118472546,0.48178344,2042.9,2042.6,0.49098651]
[1773118472845,0.002,2042.9,2042.7,0.49098651]
[1773118474669,0.002,2042.9,2042.6,0.48524769]
[1773118474856,0.46515742,2042.9,2042.6,0.48524769]
[1773118477446,0.46515742,2042.9,2042.7,0.001]
[1773118477966,0.002,2042.9,2042.7,0.48624769]
[1773118479647,0.002,2042.9,2042.7,1.71010605]
[1773118479933,1.79739917,2043.2,2042.8,0.48524769]
[1773118479934,0.57379452,2043.2,2042.8,0.48524769]
[1773118480134,0.57379452,2043.2,2043.0,0.48524769]
[1773118483970,0.46074415,2043.1,2042.8,0.48524769]
[1773118484834,1.79737939,2043.2,2042.8,0.48524769]
[1773118485635,2.25812354,2043.2,2042.8,0.48524769]
[1773118488082,1.03453867,2043.2,2042.9,0.48524769]
[1773118489588,0.002,2043.0,2042.9,0.48524769]
[1773118490886,1.03453867,2043.2,2042.9,1.70899824]
[1773118491094,0.57379452,2043.2,2043.0,0.48524769]
[1773118491591,0.46074415,2043.1,2042.8,0.48524769]
[1773118491790,0.46074415,2043.1,2042.7,3.1911063]
[1773118492092,0.46074415,2043.1,2042.8,0.48524769]
[1773118492455,0.46074415,2043.1,2042.7,1.22485861]
[1773118492992,0.46074415,2043.0,2042.7,0.001]
[1773118494604,0.45974415,2043.0,2042.6,0.45475185]
[1773118495088,0.45974415,2043.0,2042.5,0.001]
[1773118495257,0.45974415,2043.0,2042.5,1.22498319]
[1773118495460,0.45974415,2043.0,2042.5,1.67973504]
[1773118496262,0.45974415,2043.0,2042.6,0.45475185]
[1773118496495,0.45974415,2042.9,2042.6,0.45475185]
[1773118497192,0.45974415,2042.9,2042.5,0.001]
[1773118498293,0.45974415,2042.8,2042.5,0.45575185]
[1773118498660,0.45974415,2042.8,2042.5,0.001]
[1773118498864,1.68348111,2043.0,2042.5,0.45575185]
[1773118499079,0.45974415,2043.0,2042.5,0.45575185]
[1773118499478,0.45974415,2042.9,2042.5,0.45575185]
[1773118500494,4.89456513,2043.1,2042.6,0.45475185]
[1773118500709,0.45974415,2043.0,2042.6,0.45475185]
[1773118500998,0.45974415,2043.1,2042.6,0.45475185]
[1773118501564,0.45974415,2043.1,2042.7,0.001]
[1773118501894,0.46174415,2043.0,2042.7,0.001]
[1773118502464,0.45974415,2042.9,2042.7,0.001]
[1773118502797,0.002,2043.0,2042.7,0.45575185]
[1773118503298,0.46174415,2043.0,2042.7,0.45575185]
[1773118503703,0.45974415,2042.9,2042.7,0.001]
[1773118504105,0.45974415,2042.9,2042.5,0.001]
[1773118504670,1.6835546,2042.8,2042.5,0.001]
[1773118506665,0.45974415,2042.7,2042.5,0.001]
[1773118509076,1.68361772,2042.7,2042.5,0.001]
[1773118509308,0.45974415,2042.6,2042.5,0.001]
[1773118511802,1.68357918,2042.8,2042.5,0.001]
[1773118512200,0.45974415,2042.7,2042.5,0.001]
[1773118512809,1.68349845,2042.9,2042.5,0.49437539]
[1773118513007,1.22573394,2043.0,2042.5,0.49437539]
[1773118513218,0.45974415,2042.9,2042.5,0.49437539]
[1773118513396,0.45974415,2042.9,2042.7,0.001]
[1773118513902,1.6835358,2042.9,2042.7,0.001]
[1773118514109,0.45974415,2042.8,2042.7,0.001]
[1773118516936,1.6835546,2042.8,2042.7,0.001]
[1773118517115,0.45974415,2042.7,2042.2,1.71852004]
[1773118517918,0.45974415,2042.7,2042.3,0.49337539]
[1773118518303,0.45974415,2042.7,2042.2,0.001]
[1773118518602,0.45974415,2042.6,2042.2,0.001]
[1773118518998,1.2239902,2042.5,2042.2,0.49437539]
[1773118519238,1.69897826,2042.5,2042.2,0.49437539]
[1773118520134,1.69894497,2042.6,2042.2,0.49437539]
[1773118521727,1.69894497,2042.6,2042.3,0.49337539]
[1773118521916,1.22395691,2042.6,2042.3,0.49337539]
[1773118522235,1.70078198,2042.9,2042.3,0.49337539]
[1773118523014,0.47498806,2042.8,2042.3,0.49337539]
[1773118524430,1.69880314,2042.8,2042.4,0.49337539]
[1773118525441,0.47498806,2042.7,2042.4,0.49337539]
[1773118526707,0.47498806,2042.7,2042.4,0.49437539]
[1773118526902,0.002,2042.6,2042.5,0.49337539]
[1773118527235,0.002,2042.8,2042.6,0.49337539]
[1773118530878,0.002,2042.8,2042.6,1.71729611]
[1773118531141,0.002,2042.8,2042.7,0.49337539]
[1773118531940,0.002,2042.8,2042.5,0.49337539]
[1773118532146,0.47698806,2042.8,2042.5,0.49337539]
[1773118532823,0.002,2042.8,2042.5,1.71730712]
[1773118533028,0.002,2042.8,2042.6,0.49337539]
[1773118537844,0.46855715,2042.8,2042.4,3.16091726]
[1773118538381,0.46855715,2042.8,2042.5,0.45087763]
[1773118539055,0.002,2042.8,2042.5,0.45087763]
[1773118539258,0.002,2042.6,2042.5,1.67486783]
[1773118539456,0.002,2042.6,2042.5,1.67586783]
[1773118540151,0.002,2042.8,2042.6,0.45087763]
[1773118541347,0.002,2042.8,2042.7,1.67474799]
[1773118543962,0.002,2042.9,2042.8,0.45087763]
[1773118544853,0.002,2043.1,2042.8,0.45087763]
[1773118545056,0.002,2043.1,2043.0,0.45087763]
[1773118546740,0.002,2043.1,2042.9,1.67462818]
[1773118552795,0.002,2043.1,2042.9,1.67562818]
[1773118554097,1.22548426,2043.4,2043.1,0.47037157]
[1773118554098,0.002,2043.4,2043.1,0.47037157]
[1773118554274,0.47498807,2043.7,2043.3,1.81340616]
[1773118554473,0.47498807,2043.9,2043.5,1.81340616]
[1773118554778,2.56568479,2044.4,2043.2,1.492]
[1773118554779,2.56568479,2044.4,2043.7,1.34303459]
[1773118554991,0.47498807,2044.2,2043.7,1.81340616]
[1773118555193,3.78859727,2044.4,2044.0,0.47037157]
[1773118555194,0.48392877,2044.4,2044.0,0.47037157]
[1773118555562,0.48392877,2044.4,2043.9,1.81340616]
[1773118555761,0.48392877,2044.4,2043.9,0.47037157]
[1773118557208,0.48392877,2044.2,2043.7,3.30640616]
[1773118557496,0.48392877,2044.2,2043.7,1.34303459]
[1773118557796,0.48392877,2044.2,2043.7,1.81340616]
[1773118557989,0.48392877,2044.2,2043.8,0.47037157]
[1773118558497,1.22291248,2044.3,2043.8,0.47037157]
[1773118558672,1.70684125,2044.3,2043.8,0.47037157]
[1773118559200,1.22303214,2044.1,2043.8,0.47037157]
[1773118559599,1.70693238,2044.2,2043.8,0.47037157]
[1773118560727,0.1606191,2044.7,2044.1,0.47037157]
[1773118560728,0.48392877,2044.6,2044.1,0.47037157]
[1773118561004,0.1606191,2044.7,2044.4,1.34303459]
[1773118561173,0.1606191,2044.7,2044.5,0.47037157]
[1773118561574,1.46589064,2046.6,2044.8,0.47037157]
[1773118561904,1.46589064,2046.6,2045.5,1.81340616]
[1773118561905,0.48392877,2046.4,2045.5,1.81340616]
[1773118562104,0.48392877,2046.4,2045.5,0.47037157]
[1773118563172,0.48392877,2046.2,2045.5,0.47037157]
[1773118563708,1.679684,2046.8,2046.0,0.46674024]
[1773118563914,0.77791303,2046.9,2046.7,1.34303459]
[1773118564225,0.77791303,2046.9,2046.5,0.46674024]
[1773118564226,0.52885971,2046.9,2046.5,0.46674024]
[1773118564378,0.52885971,2046.8,2046.3,0.46674024]
[1773118564576,0.4582652,2047.0,2046.3,0.46674024]
[1773118564803,0.98712491,2047.0,2046.3,0.46674024]
[1773118565210,1.22135912,2046.9,2046.3,0.44356348]
[1773118565506,0.52885971,2047.0,2046.6,0.46674024]
[1773118565706,1.22106085,2047.5,2046.7,0.46674024]
[1773118565915,0.4582652,2047.3,2046.7,0.46674024]
[1773118566207,0.4582652,2047.3,2046.4,0.46674024]
[1773118566406,0.4582652,2047.1,2046.0,0.46674024]
[1773118566607,0.52885971,2047.4,2046.2,0.46674024]
[1773118566812,0.52885971,2047.4,2046.1,3.34162811]
[1773118566813,1.22091201,2047.7,2046.8,0.46674024]
[1773118567012,2.53131482,2048.3,2046.8,0.46674024]
[1773118567013,1.67884912,2048.2,2047.2,0.46674024]
[1773118567196,1.54944363,2048.2,2047.2,1.68787578]
[1773118567397,1.54944363,2048.2,2047.3,0.46674024]
[1773118567709,1.54947193,2048.2,2047.3,0.46674024]
[1773118568399,0.4582652,2048.0,2047.1,0.46674024]
[1773118568798,1.22046475,2048.4,2047.1,0.46674024]
[1773118568799,0.32885971,2047.9,2047.1,0.46674024]
[1773118569105,0.4582652,2048.1,2047.1,0.46674024]
[1773118569697,1.54956283,2048.0,2047.1,0.46674024]
[1773118569889,0.4582652,2047.9,2047.1,0.46674024]
[1773118570087,1.54956283,2048.0,2047.2,0.46674024]
[1773118570275,0.32885971,2048.0,2047.2,0.46674024]
[1773118570813,0.4582652,2047.9,2046.9,0.46674024]
[1773118570981,2.53131482,2047.9,2046.9,0.46674024]
[1773118571181,0.4582652,2047.8,2046.9,0.46674024]
[1773118571634,0.4582652,2047.6,2046.6,1.68824189]
[1773118571800,1.67926642,2047.5,2046.6,1.68827639]
[1773118572001,1.67926642,2047.5,2046.7,0.46674024]
[1773118572206,0.78712491,2047.4,2046.7,0.46674024]
[1773118572406,0.4582652,2047.3,2046.4,0.46674024]
[1773118572739,0.4582652,2047.2,2046.4,1.6883775]
[1773118572892,0.32885971,2047.3,2046.5,0.46674024]
[1773118573088,1.67926642,2047.5,2046.5,0.46674024]
[1773118573089,0.32885971,2047.2,2046.5,0.46674024]
[1773118573290,0.4582652,2047.2,2046.1,0.46674024]
[1773118573490,1.22100122,2047.5,2046.1,0.46674024]
[1773118573491,0.4582652,2047.0,2046.1,3.80900749]
[1773118573690,0.32885971,2046.9,2046.3,0.46674024]
[1773118573890,1.67944534,2047.2,2046.3,0.46674024]
[1773118574208,0.32885971,2047.1,2046.3,0.46674024]
[1773118574410,0.78712491,2047.1,2046.3,0.46674024]
[1773118574752,0.32885971,2047.0,2046.3,0.46674024]
[1773118575753,1.22135912,2046.9,2046.4,0.46674024]
[1773118576818,1.22135912,2046.9,2046.2,0.46674024]
[1773118576819,0.32885971,2046.8,2046.2,0.46674024]
[1773118578030,0.32885971,2046.7,2046.5,0.46774024]
[1773118578904,0.002,2046.8,2046.5,0.46774024]
[1773118579105,0.33085971,2046.8,2046.5,0.46774024]
[1773118579505,1.55228142,2046.8,2046.5,0.46774024]
[1773118580033,0.33085971,2046.8,2046.5,0.46774024]
[1773118580933,0.33085971,2046.8,2046.6,0.46674024]
[1773118582036,0.002,2046.8,2046.6,0.46674024]
[1773118583317,1.2234293,2046.8,2046.5,0.001]
[1773118583571,0.32885971,2046.7,2046.5,0.46774024]
[1773118584791,0.32885971,2046.7,2046.5,0.001]
[1773118584937,0.32885971,2046.6,2046.5,0.001]
[1773118585136,1.22149946,2046.7,2046.5,0.001]
[1773118585436,1.22149946,2046.7,2046.1,0.46674024]
[1773118585437,0.32685971,2046.6,2046.1,0.46674024]
[1773118585965,1.22171724,2046.3,2045.7,1.68881516]
[1773118586172,1.22170127,2046.4,2045.8,0.46674024]
[1773118586381,0.32585971,2046.3,2045.8,0.46674024]
[1773118587440,0.78412491,2046.3,2045.7,0.46674024]
[1773118587849,0.32585971,2046.3,2045.7,0.46674024]
[1773118588050,1.54762659,2046.3,2045.8,0.46674024]
[1773118588556,0.002,2046.8,2046.2,0.46674024]
[1773118588745,0.4582652,2046.7,2045.9,0.46674024]
[1773118589365,1.2234378,2046.8,2045.9,0.46674024]